fUST/lending_fUST_20251203
["ID","MTS","AMOUNT","RATE_DAILY","PERIOD"]
[395595460,1764707443040,-500.0,0.00013698,2]
[395595462,1764707443049,-500.0,0.00013698,2]
[395595464,1764707443059,-570.11,0.00013698,2]
[395595466,1764707443069,-853.93,0.00013698,2]
[395595468,1764707443078,-500.0,0.00013698,2]
[395595470,1764707443087,-500.0,0.00013698,2]
[395595473,1764707443096,-500.0,0.00013698,2]
[395595476,1764707443105,-400.31899137,0.00013698,2]
[395595479,1764707443115,-500.0,0.00013698,2]
[395595481,1764707443128,-500.0,0.00013698,2]
[395595483,1764707443138,-500.0,0.00013698,2]
[395595485,1764707443147,-500.0,0.00013698,2]
[395595487,1764707443157,-500.0,0.00013698,2]
[395595489,1764707443167,-500.0,0.00013698,2]
[395595491,1764707443176,-500.0,0.00013698,2]
[395595493,1764707443185,-500.0,0.00013698,2]
[395595495,1764707443195,-500.0,0.00013698,2]
[395595497,1764707443204,-1027.95,0.00013698,2]
[395595499,1764707443214,-500.0,0.00013698,2]
[395595501,1764707443223,-500.0,0.00013698,2]
[395595503,1764707443232,-500.0,0.00013698,2]
[395595505,1764707443242,-500.0,0.00013698,2]
[395595507,1764707443251,-500.0,0.00013698,2]
[395595509,1764707443261,-550.54,0.00013698,2]
[395595511,1764707443271,-500.0,0.00013698,2]
[395595514,1764707443280,-500.0,0.00013698,2]
[395595516,1764707443291,-500.0,0.00013698,2]
[395595518,1764707443302,-500.0,0.00013698,2]
[395595520,1764707443313,-1600.69,0.00013698,2]
[395595522,1764707443322,-500.0,0.00013698,2]
[395595524,1764707443338,-509.01,0.00013698,2]
[395595526,1764707443347,-510.59985048,0.00013698,2]
[395595528,1764707443357,-500.0,0.00013698,2]
[395595529,1764707443366,-686.52,0.00013698,2]
[395595532,1764707443378,-500.0,0.00013698,2]
[395595534,1764707443387,-500.0,0.00013698,2]
[395595536,1764707443396,-500.0,0.00013698,2]
[395595537,1764707443406,-500.0,0.00013698,2]
[395595540,1764707443417,-500.0,0.00013698,2]
[395595542,1764707443426,-500.0,0.00013698,2]
[395595543,1764707443435,-500.0,0.00013698,2]
[395595545,1764707443445,-500.0,0.00013698,2]
[395595547,1764707443454,-500.0,0.00013698,2]
[395595550,1764707443464,-216.10177525,0.00013698,2]
[395595552,1764707443473,-500.0,0.00013698,2]
[395595554,1764707443483,-500.0,0.00013698,2]
[395595556,1764707443492,-500.0,0.00013698,2]
[395595558,1764707443501,-500.0,0.00013698,2]
[395595559,1764707443509,-1405.85,0.00013698,2]
[395595561,1764707443519,-500.0,0.00013698,2]
[395595564,1764707443528,-500.0,0.00013698,2]
[395595566,1764707443538,-723.38,0.00013698,2]
[395595567,1764707443547,-500.0,0.00013698,2]
[395595570,1764707443557,-964.24,0.00013698,2]
[395595571,1764707443566,-500.0,0.00013698,2]
[395595573,1764707443576,-840.15,0.00013698,2]
[395595575,1764707443586,-500.0,0.00013698,2]
[395595577,1764707443595,-645.98,0.00013698,2]
[395595580,1764707443604,-536.09,0.00013698,2]
[395595582,1764707443613,-970.28,0.00013698,2]
[395595584,1764707443623,-500.0,0.00013698,2]
[395595586,1764707443632,-500.0,0.00013698,2]
[395595588,1764707443641,-500.0,0.00013698,2]
[395595590,1764707443650,-500.0,0.00013698,2]
[395595592,1764707443660,-1282.8,0.00013698,2]
[395595594,1764707443669,-756.18,0.00013698,2]
[395595596,1764707443678,-500.0,0.00013698,2]
[395595598,1764707443688,-500.0,0.00013698,2]
[395595600,1764707443697,-500.0,0.00013698,2]
[395595602,1764707443706,-500.0,0.00013698,2]
[395595604,1764707443715,-1082.51,0.00013698,2]
[395595606,1764707443725,-500.0,0.00013698,2]
[395595608,1764707443733,-500.0,0.00013698,2]
[395595610,1764707443745,-500.0,0.00013698,2]
[395595612,1764707443754,-740.23,0.00013698,2]
[395595615,1764707443763,-500.0,0.00013698,2]
[395595617,1764707443772,-500.0,0.00013698,2]
[395595619,1764707443781,-500.0,0.00013698,2]
[395595621,1764707443790,-500.0,0.00013698,2]
[395595623,1764707443799,-500.0,0.00013698,2]
[395595625,1764707443809,-500.0,0.00013698,2]
[395595627,1764707443818,-500.0,0.00013698,2]
[395595629,1764707443827,-500.0,0.00013698,2]
[395595631,1764707443836,-500.0,0.00013698,2]
[395595650,1764707444002,-500.0,0.00013698,2]
[395595652,1764707444013,-500.0,0.00013698,2]
[395595654,1764707444023,-503.87152427,0.00013698,2]
[395595656,1764707444031,-500.0,0.00013698,2]
[395595658,1764707444041,-500.0,0.00013698,2]
[395595660,1764707444050,-500.0,0.00013698,2]
[395595662,1764707444059,-500.0,0.00013698,2]
[395595664,1764707444068,-500.0,0.00013698,2]
[395595666,1764707444078,-500.0,0.00013698,2]
[395595668,1764707444087,-596.77,0.00013698,2]
[395595670,1764707444096,-846.88,0.00013698,2]
[395595672,1764707444105,-500.0,0.00013698,2]
[395595674,1764707444114,-500.0,0.00013698,2]
[395595676,1764707444123,-1648.94,0.00013698,2]
[395595678,1764707444132,-500.0,0.00013698,2]
[395595680,1764707444141,-570.45,0.00013698,2]
[395595682,1764707444151,-500.0,0.00013698,2]
[395595684,1764707444159,-500.0,0.00013698,2]
[395595686,1764707444169,-500.0,0.00013698,2]
[395595688,1764707444179,-526.62284416,0.00013698,2]
[395595690,1764707444187,-599.77,0.00013698,2]
[395595692,1764707444196,-500.0,0.00013698,2]
[395595694,1764707444205,-504.86,0.00013698,2]
[395595695,1764707444214,-500.0,0.00013698,2]
[395595698,1764707444224,-435.56385623,0.00013698,2]
[395595700,1764707444234,-500.0,0.00013698,2]
[395595702,1764707444244,-1292.98,0.00013698,2]
[395595704,1764707444253,-592.59,0.00013698,2]
[395595706,1764707444262,-500.0,0.00013698,2]
[395595708,1764707444272,-304.99653181,0.00013698,2]
[395595710,1764707444281,-675.43,0.00013698,2]
[395595711,1764707444290,-500.0,0.00013698,2]
[395595714,1764707444300,-500.0,0.00013698,2]
[395595716,1764707444309,-500.0,0.00013698,2]
[395595718,1764707444319,-1172.11,0.00013698,2]
[395595719,1764707444328,-500.0,0.00013698,2]
[395595722,1764707444341,-724.89,0.00013698,2]
[395595724,1764707444352,-500.0,0.00013698,2]
[395595726,1764707444368,-1499.39,0.00013698,2]
[395595728,1764707444380,-500.0,0.00013698,2]
[395595730,1764707444399,-500.0,0.00013698,2]
[395595732,1764707444419,-500.0,0.00013698,2]
[395595734,1764707444432,-500.0,0.00013698,2]
[395595736,1764707444442,-500.0,0.00013698,2]
[395595738,1764707444452,-551.09,0.00013698,2]
[395595740,1764707444461,-500.0,0.00013698,2]
[395595742,1764707444471,-500.0,0.00013698,2]
[395595744,1764707444480,-1199.09,0.00013698,2]
[395595746,1764707444490,-888.81,0.00013698,2]
[395595748,1764707444499,-500.0,0.00013698,2]
[395595749,1764707444509,-500.0,0.00013698,2]
[395595751,1764707444518,-500.0,0.00013698,2]
[395595753,1764707444526,-500.0,0.00013698,2]
[395595755,1764707444535,-500.0,0.00013698,2]
[395595757,1764707444545,-151.0,0.00013698,2]
[395595759,1764707444554,-500.0,0.00013698,2]
[395595761,1764707444563,-500.0,0.00013698,2]
[395595763,1764707444573,-766.09,0.00013698,2]
[395595765,1764707444582,-500.0,0.00013698,2]
[395595767,1764707444591,-854.83,0.00013698,2]
[395595769,1764707444600,-698.37,0.00013698,2]
[395595771,1764707444609,-500.0,0.00013698,2]
[395595772,1764707444618,-500.0,0.00013698,2]
[395595774,1764707444629,-500.0,0.00013698,2]
[395595776,1764707444639,-500.0,0.00013698,2]
[395595778,1764707444648,-519.63,0.00013698,2]
[395595780,1764707444658,-500.0,0.00013698,2]
[395595782,1764707444667,-500.0,0.00013698,2]
[395595784,1764707444677,-766.17,0.00013698,2]
[395595786,1764707444687,-500.0,0.00013698,2]
[395595788,1764707444696,-678.75,0.00013698,2]
[395595790,1764707444706,-582.36007654,0.00013698,2]
[395595792,1764707444715,-500.0,0.00013698,2]
[395595794,1764707444724,-500.0,0.00013698,2]
[395595796,1764707444734,-500.0,0.00013698,2]
[395595798,1764707444743,-972.47,0.00013698,2]
[395595800,1764707444752,-500.0,0.00013698,2]
[395595802,1764707444762,-500.0,0.00013698,2]
[395595804,1764707444771,-500.0,0.00013698,2]
[395595806,1764707444780,-500.0,0.00013698,2]
[395595808,1764707444790,-500.0,0.00013698,2]
[395595810,1764707444800,-500.0,0.00013698,2]
[395595812,1764707444809,-524.94327953,0.00013698,2]
[395595814,1764707444818,-500.0,0.00013698,2]
[395595815,1764707444827,-500.0,0.00013698,2]
[395595817,1764707444836,-500.0,0.00013698,2]
[395595819,1764707444845,-500.0,0.00013698,2]
[395595821,1764707444855,-715.57,0.00013698,2]
[395595823,1764707444864,-500.0,0.00013698,2]
[395595825,1764707444874,-500.0,0.00013698,2]
[395595827,1764707444883,-681.5,0.00013698,2]
[395595829,1764707444892,-580.96,0.00013698,2]
[395595831,1764707444903,-500.0,0.00013698,2]
[395595833,1764707444912,-500.0,0.00013698,2]
[395595835,1764707444921,-620.3496185,0.00013698,2]
[395595836,1764707444931,-874.45,0.00013698,2]
[395595837,1764707444940,-572.91599747,0.00013698,2]
[395595838,1764707444949,-766.59,0.00013698,2]
[395595839,1764707444958,-500.0,0.00013698,2]
[395595840,1764707444967,-1186.68,0.00013698,2]
[395595841,1764707444976,-1056.06,0.00013698,2]
[395595842,1764707444986,-500.0,0.00013698,2]
[395595843,1764707444995,-500.0,0.00013698,2]
[395595844,1764707445004,-500.0,0.00013698,2]
[395595845,1764707445014,-500.0,0.00013698,2]
[395595846,1764707445023,-929.21,0.00013698,2]
[395595847,1764707445032,-500.0,0.00013698,2]
[395595848,1764707445041,-500.0,0.00013698,2]
[395595849,1764707445050,-500.0,0.00013698,2]
[395595850,1764707445059,-500.0,0.00013698,2]
[395595851,1764707445069,-500.0,0.00013698,2]
[395595852,1764707445078,-500.0,0.00013698,2]
[395595853,1764707445088,-276.541224,0.00013698,2]
[395595854,1764707445097,-500.0,0.00013698,2]
[395595855,1764707445106,-276.541224,0.00013698,2]
[395595856,1764707445115,-276.541224,0.00013698,2]
[395595857,1764707445124,-500.0,0.00013698,2]
[395595858,1764707445134,-500.0,0.00013698,2]
[395595859,1764707445143,-276.541224,0.00013698,2]
[395595860,1764707445152,-276.541224,0.00013698,2]
[395595861,1764707445161,-276.541224,0.00013698,2]
[395595862,1764707445171,-276.541224,0.00013698,2]
[395595863,1764707445180,-276.541224,0.00013698,2]
[395595864,1764707445189,-276.541224,0.00013698,2]
[395595865,1764707445198,-500.0,0.00013698,2]
[395595866,1764707445207,-276.541224,0.00013698,2]
[395595867,1764707445216,-276.541224,0.00013698,2]
[395595868,1764707445225,-276.541214,0.00013698,2]
[395595869,1764707445235,-695.81,0.00013698,2]
[395595871,1764707445244,-500.0,0.00013698,2]
[395595872,1764707445253,-592.15,0.00013698,2]
[395595874,1764707445262,-500.0,0.00013698,2]
[395595876,1764707445271,-500.10866484,0.00013698,2]
[395595878,1764707445280,-500.0,0.00013698,2]
[395595880,1764707445289,-500.0,0.00013698,2]
[395595882,1764707445298,-500.0,0.00013698,2]
[395595884,1764707445307,-368.409851,0.00013698,2]
[395595886,1764707445316,-500.0,0.00013698,2]
[395595889,1764707445334,-500.0,0.00013698,2]
[395595892,1764707445352,-500.0,0.00013698,2]
[395595894,1764707445365,-368.409851,0.00013698,2]
[395595897,1764707445382,-368.409851,0.00013698,2]
[395595899,1764707445398,-368.409851,0.00013698,2]
[395595902,1764707445414,-368.409851,0.00013698,2]
[395595905,1764707445428,-368.409851,0.00013698,2]
[395595907,1764707445444,-500.0,0.00013698,2]
[395595910,1764707445457,-500.0,0.00013698,2]
[395595912,1764707445471,-368.409851,0.00013698,2]
[395595915,1764707445486,-798.4,0.00013698,2]
[395595917,1764707445501,-368.409851,0.00013698,2]
[395595920,1764707445512,-3593.05,0.00013698,2]
[395595922,1764707445525,-368.409851,0.00013698,2]
[395595925,1764707445539,-500.0,0.00013698,2]
[395595927,1764707445555,-368.409851,0.00013698,2]
[395595930,1764707445571,-368.409851,0.00013698,2]
[395595932,1764707445586,-368.40984848,0.00013698,2]
[395595935,1764707445598,-885.66,0.00013698,2]
[395595937,1764707445609,-151.0,0.00013698,2]
[395595939,1764707445623,-151.0,0.00013698,2]
[395595942,1764707445639,-500.0,0.00013698,2]
[395595944,1764707445650,-500.0,0.00013698,2]
[395595947,1764707445663,-500.0,0.00013698,2]
[395595949,1764707445677,-500.0,0.00013698,2]
[395595951,1764707445690,-1238.62,0.00013698,2]
[395595954,1764707445701,-500.0,0.00013698,2]
[395595956,1764707445712,-500.0,0.00013698,2]
[395595958,1764707445725,-500.0,0.00013698,2]
[395595960,1764707445738,-1248.89,0.00013698,2]
[395595963,1764707445750,-3618.62,0.00013698,2]
[395595965,1764707445763,-545.6,0.00013698,2]
[395595967,1764707445775,-503.17,0.00013698,2]
[395595970,1764707445788,-500.0,0.00013698,2]
[395595972,1764707445801,-500.0,0.00013698,2]
[395595975,1764707445815,-500.0,0.00013698,2]
[395595977,1764707445828,-490.01400426,0.00013698,2]
[395595979,1764707445839,-500.0,0.00013698,2]
[395595981,1764707445851,-647.7,0.00013698,2]
[395595984,1764707445863,-519.63807565,0.00013698,2]
[395595986,1764707445876,-500.0,0.00013698,2]
[395595989,1764707445892,-1094.78,0.00013698,2]
[395595991,1764707445904,-500.0,0.00013698,2]
[395595993,1764707445916,-500.0,0.00013698,2]
[395595995,1764707445929,-500.0,0.00013698,2]
[395595998,1764707445941,-1028.49,0.00013698,2]
[395596000,1764707445954,-1081.91,0.00013698,2]
[395596002,1764707445967,-500.0,0.00013698,2]
[395596004,1764707445981,-500.0,0.00013698,2]
[395596007,1764707445992,-500.0,0.00013698,2]
[395596009,1764707446004,-666.92,0.00013698,2]
[395596011,1764707446017,-910.06,0.00013698,2]
[395596014,1764707446030,-500.0,0.00013698,2]
[395596016,1764707446042,-500.0,0.00013698,2]
[395596018,1764707446054,-628.66,0.00013698,2]
[395596021,1764707446067,-909.67,0.00013698,2]
[395596023,1764707446080,-500.0,0.00013698,2]
[395596026,1764707446093,-520.76,0.00013698,2]
[395596028,1764707446108,-500.0,0.00013698,2]
[395596030,1764707446120,-500.0,0.00013698,2]
[395596033,1764707446134,-1047.75,0.00013698,2]
[395596035,1764707446147,-1096.29,0.00013698,2]
[395596037,1764707446159,-500.0,0.00013698,2]
[395596040,1764707446172,-500.0,0.00013698,2]
[395596043,1764707446184,-1014.06,0.00013698,2]
[395596046,1764707446198,-735.28,0.00013698,2]
[395596048,1764707446212,-500.0,0.00013698,2]
[395596050,1764707446224,-1879.24,0.00013698,2]
[395596052,1764707446236,-935.31,0.00013698,2]
[395596055,1764707446248,-588.96,0.00013698,2]
[395596057,1764707446261,-500.0,0.00013698,2]
[395596059,1764707446273,-3605.92,0.00013698,2]
[395596062,1764707446287,-1347.23,0.00013698,2]
[395596064,1764707446299,-500.0,0.00013698,2]
[395596067,1764707446312,-500.0,0.00013698,2]
[395596069,1764707446324,-625.26,0.00013698,2]
[395596071,1764707446340,-1318.86,0.00013698,2]
[395596074,1764707446357,-500.0,0.00013698,2]
[395596076,1764707446370,-500.0,0.00013698,2]
[395596078,1764707446385,-736.49,0.00013698,2]
[395596081,1764707446399,-1219.74,0.00013698,2]
[395596083,1764707446411,-316.80410974,0.00013698,2]
[395596086,1764707446425,-500.0,0.00013698,2]
[395596088,1764707446439,-1029.99,0.00013698,2]
[395596090,1764707446451,-500.0,0.00013698,2]
[395596093,1764707446465,-500.0,0.00013698,2]
[395596095,1764707446477,-500.0,0.00013698,2]
[395596097,1764707446492,-500.0,0.00013698,2]
[395596100,1764707446505,-672.45,0.00013698,2]
[395596102,1764707446518,-639.22,0.00013698,2]
[395596104,1764707446530,-991.01,0.00013698,2]
[395596107,1764707446542,-288.694982,0.00013698,2]
[395596109,1764707446555,-288.694982,0.00013698,2]
[395596111,1764707446568,-500.0,0.00013698,2]
[395596114,1764707446580,-288.694982,0.00013698,2]
[395596116,1764707446592,-1278.61,0.00013698,2]
[395596118,1764707446604,-1629.082675,0.00013698,2]
[395596120,1764707446617,-288.694982,0.00013698,2]
[395596123,1764707446631,-1629.082675,0.00013698,2]
[395596125,1764707446644,-1629.082675,0.00013698,2]
[395596127,1764707446657,-288.694982,0.00013698,2]
[395596130,1764707446669,-1629.082675,0.00013698,2]
[395596132,1764707446682,-288.694982,0.00013698,2]
[395596134,1764707446695,-500.0,0.00013698,2]
[395596137,1764707446708,-288.694982,0.00013698,2]
[395596139,1764707446721,-1629.082675,0.00013698,2]
[395596141,1764707446734,-288.694982,0.00013698,2]
[395596144,1764707446746,-1629.082675,0.00013698,2]
[395596146,1764707446760,-1629.082675,0.00013698,2]
[395596148,1764707446773,-288.694982,0.00013698,2]
[395596151,1764707446785,-1629.082675,0.00013698,2]
[395596153,1764707446798,-288.694982,0.00013698,2]
[395596156,1764707446812,-2091.11,0.00013698,2]
[395596158,1764707446824,-500.0,0.00013698,2]
[395596160,1764707446836,-288.694982,0.00013698,2]
[395596163,1764707446849,-1629.082675,0.00013698,2]
[395596165,1764707446862,-288.694982,0.00013698,2]
[395596167,1764707446876,-1629.082675,0.00013698,2]
[395596170,1764707446888,-1629.082675,0.00013698,2]
[395596172,1764707446901,-288.694982,0.00013698,2]
[395596174,1764707446914,-1629.082675,0.00013698,2]
[395596177,1764707446926,-288.694982,0.00013698,2]
[395596179,1764707446939,-571.95528509,0.00013698,2]
[395596181,1764707446952,-288.694982,0.00013698,2]
[395596184,1764707446964,-502.11112748,0.00013698,2]
[395596186,1764707446977,-1629.082675,0.00013698,2]
[395596188,1764707446989,-1629.082675,0.00013698,2]
[395596190,1764707446998,-288.69499,0.00013698,2]
[395596192,1764707447007,-1629.082675,0.00013698,2]
[395596194,1764707447016,-1629.082673,0.00013698,2]
[395596196,1764707447025,-500.0,0.00013698,2]
[395596198,1764707447035,-500.0,0.00013698,2]
[395596200,1764707447044,-500.0,0.00013698,2]
[395596203,1764707447052,-1538.09,0.00013698,2]
[395596206,1764707447062,-500.0,0.00013698,2]
[395596208,1764707447071,-500.0,0.00013698,2]
[395596210,1764707447080,-500.0,0.00013698,2]
[395596239,1764707447358,-500.0,0.00013698,2]
[395596244,1764707447391,-500.0,0.00013698,2]
[395596246,1764707447411,-611.58,0.00013698,2]
[395596248,1764707447421,-500.0,0.00013698,2]
[395596250,1764707447431,-500.0,0.00013698,2]
[395596252,1764707447440,-768.3,0.00013698,2]
[395596254,1764707447450,-548.46,0.00013698,2]
[395596256,1764707447459,-578.55,0.00013698,2]
[395596258,1764707447469,-1382.52,0.00013698,2]
[395596260,1764707447478,-1037.01,0.00013698,2]
[395596262,1764707447487,-500.0,0.00013698,2]
[395596264,1764707447496,-500.0,0.00013698,2]
[395596266,1764707447505,-500.0,0.00013698,2]
[395596268,1764707447514,-500.0,0.00013698,2]
[395596270,1764707447524,-168.703231,0.00013698,2]
[395596272,1764707447533,-168.703231,0.00013698,2]
[395596274,1764707447543,-168.703231,0.00013698,2]
[395596276,1764707447552,-168.703231,0.00013698,2]
[395596277,1764707447561,-1239.61,0.00013698,2]
[395596278,1764707447570,-500.0,0.00013698,2]
[395596279,1764707447580,-168.703231,0.00013698,2]
[395596280,1764707447589,-168.703231,0.00013698,2]
[395596281,1764707447598,-168.703231,0.00013698,2]
[395596282,1764707447607,-168.703231,0.00013698,2]
[395596283,1764707447617,-1261.8,0.00013698,2]
[395596284,1764707447628,-168.703231,0.00013698,2]
[395596285,1764707447639,-500.0,0.00013698,2]
[395596286,1764707447648,-168.703231,0.00013698,2]
[395596287,1764707447658,-500.0,0.00013698,2]
[395596288,1764707447668,-168.703231,0.00013698,2]
[395596290,1764707447679,-500.0,0.00013698,2]
[395596292,1764707447689,-168.703231,0.00013698,2]
[395596294,1764707447699,-686.41,0.00013698,2]
[395596296,1764707447709,-168.703231,0.00013698,2]
[395596298,1764707447719,-500.0,0.00013698,2]
[395596300,1764707447728,-168.703231,0.00013698,2]
[395596302,1764707447737,-168.703231,0.00013698,2]
[395596304,1764707447746,-168.703226,0.00013698,2]
[395596306,1764707447755,-500.0,0.00013698,2]
[395596308,1764707447765,-500.0,0.00013698,2]
[395596310,1764707447774,-523.01,0.00013698,2]
[395596312,1764707447784,-1077.25,0.00013698,2]
[395596314,1764707447794,-500.0,0.00013698,2]
[395596316,1764707447803,-1230.77,0.00013698,2]
[395596318,1764707447812,-500.0,0.00013698,2]
[395596320,1764707447822,-500.0,0.00013698,2]
[395596322,1764707447831,-5527.31,0.00013698,2]
[395596324,1764707447840,-500.0,0.00013698,2]
[395596326,1764707447850,-500.0,0.00013698,2]
[395596328,1764707447859,-605.62,0.00013698,2]
[395596330,1764707447868,-1110.56,0.00013698,2]
[395596332,1764707447879,-500.0,0.00013698,2]
[395596334,1764707447888,-500.0,0.00013698,2]
[395596336,1764707447897,-500.0,0.00013698,2]
[395596338,1764707447907,-500.0,0.00013698,2]
[395596340,1764707447915,-773.66,0.00013698,2]
[395596342,1764707447926,-500.0,0.00013698,2]
[395596344,1764707447935,-500.0,0.00013698,2]
[395596346,1764707447944,-674.09,0.00013698,2]
[395596348,1764707447954,-500.0,0.00013698,2]
[395596350,1764707447963,-2241.49,0.00013698,2]
[395596352,1764707447972,-500.0,0.00013698,2]
[395596355,1764707447987,-921.6,0.00013698,2]
[395596357,1764707447997,-945.47,0.00013698,2]
[395596359,1764707448006,-500.0,0.00013698,2]
[395596361,1764707448015,-500.0,0.00013698,2]
[395596363,1764707448025,-731.61,0.00013698,2]
[395596365,1764707448035,-1700.79,0.00013698,2]
[395596367,1764707448046,-727.02,0.00013698,2]
[395596369,1764707448055,-1052.62,0.00013698,2]
[395596371,1764707448064,-1387.12,0.00013698,2]
[395596373,1764707448074,-500.0,0.00013698,2]
[395596375,1764707448083,-500.0,0.00013698,2]
[395596377,1764707448092,-500.0,0.00013698,2]
[395596379,1764707448101,-500.0,0.00013698,2]
[395596381,1764707448111,-500.0,0.00013698,2]
[395596383,1764707448120,-500.0,0.00013698,2]
[395596385,1764707448130,-500.0,0.00013698,2]
[395596387,1764707448139,-500.0,0.00013698,2]
[395596389,1764707448148,-985.52,0.00013698,2]
[395596391,1764707448158,-821.92,0.00013698,2]
[395596393,1764707448167,-719.33,0.00013698,2]
[395596395,1764707448176,-500.0,0.00013698,2]
[395596397,1764707448186,-504.08966963,0.00013698,2]
[395596399,1764707448195,-502.67157478,0.00013698,2]
[395596401,1764707448204,-500.0,0.00013698,2]
[395596403,1764707448214,-173.46690907,0.00013698,2]
[395596405,1764707448223,-522.26777699,0.00013698,2]
[395596407,1764707448233,-500.0,0.00013698,2]
[395596409,1764707448242,-151.0,0.00013698,2]
[395596411,1764707448251,-500.0,0.00013698,2]
[395596413,1764707448261,-151.0,0.00013698,2]
[395596415,1764707448270,-1631.49,0.00013698,2]
[395596417,1764707448280,-500.0,0.00013698,2]
[395596419,1764707448289,-151.0,0.00013698,2]
[395596421,1764707448298,-500.0,0.00013698,2]
[395596423,1764707448307,-733.08,0.00013698,2]
[395596425,1764707448316,-500.0,0.00013698,2]
[395596427,1764707448325,-518.66,0.00013698,2]
[395596429,1764707448336,-1904.81,0.00013698,2]
[395596431,1764707448347,-1297.84,0.00013698,2]
[395596433,1764707448356,-789.52,0.00013698,2]
[395596435,1764707448365,-4587.29,0.00013698,2]
[395596437,1764707448376,-1083.71,0.00013698,2]
[395596439,1764707448385,-682.93,0.00013698,2]
[395596441,1764707448395,-500.0,0.00013698,2]
[395596443,1764707448405,-3016.07,0.00013698,2]
[395596445,1764707448416,-500.0,0.00013698,2]
[395596447,1764707448425,-1363.33,0.00013698,2]
[395596449,1764707448436,-500.0,0.00013698,2]
[395596451,1764707448448,-461.78659488,0.00013698,2]
[395596453,1764707448458,-500.0,0.00013698,2]
[395596455,1764707448468,-331.88851665,0.00013698,2]
[395596457,1764707448477,-500.0,0.00013698,2]
[395596459,1764707448487,-500.0,0.00013698,2]
[395596461,1764707448497,-3510.14,0.00013698,2]
[395596463,1764707448507,-517.740014,0.00013698,2]
[395596465,1764707448517,-500.0,0.00013698,2]
[395596467,1764707448527,-638.23,0.00013698,2]
[395596469,1764707448536,-477.29588568,0.00013698,2]
[395596471,1764707448547,-844.3,0.00013698,2]
[395596473,1764707448557,-1568.26,0.00013698,2]
[395596475,1764707448567,-823.38,0.00013698,2]
[395596477,1764707448576,-500.0,0.00013698,2]
[395596479,1764707448586,-500.0,0.00013698,2]
[395596481,1764707448595,-4360.5,0.00013698,2]
[395596483,1764707448605,-1126.18,0.00013698,2]
[395596485,1764707448614,-500.0,0.00013698,2]
[395596487,1764707448624,-958.08,0.00013698,2]
[395596489,1764707448635,-500.0,0.00013698,2]
[395596491,1764707448645,-739.68,0.00013698,2]
[395596493,1764707448655,-1062.59,0.00013698,2]
[395596495,1764707448666,-719.74,0.00013698,2]
[395596497,1764707448675,-1808.3,0.00013698,2]
[395596499,1764707448686,-500.0,0.00013698,2]
[395596501,1764707448696,-500.0,0.00013698,2]
[395596503,1764707448706,-1170.44,0.00013698,2]
[395596505,1764707448716,-500.0,0.00013698,2]
[395596507,1764707448726,-1008.9,0.00013698,2]
[395596509,1764707448736,-6134.91,0.00013698,2]
[395596512,1764707448747,-250.700464,0.00013698,2]